bitfinex/quotes_BTCUSD_20240823
["timestamp","ask_amount","ask_price","bid_price","bid_amount"]
[1724382123287,0.31019045,60741.0,60740.0,0.05186075]
[1724382124141,0.71706057,60741.0,60740.0,0.01486075]
[1724382124400,0.71706057,60741.0,60740.0,0.01446482]
[1724382124401,1.04632657,60741.0,60740.0,0.01446482]
[1724382124637,1.04632657,60741.0,60740.0,0.02846482]
[1724382124638,1.04732657,60741.0,60740.0,0.02846482]
[1724382125031,1.04632657,60741.0,60740.0,0.01446482]
[1724382125691,1.04532657,60741.0,60740.0,0.00346482]
[1724382126103,1.04532657,60741.0,60740.0,0.00146482]
[1724382127506,1.04532657,60741.0,60740.0,0.00186075]
[1724382129296,1.04532657,60741.0,60740.0,0.00086075]
[1724382129493,1.67605341,60741.0,60740.0,0.00046482]
[1724382129725,1.64159555,60741.0,60740.0,0.00046482]
[1724382130336,1.64459555,60741.0,60740.0,0.00046482]
[1724382131359,1.64159555,60741.0,60740.0,0.00046482]
[1724382132002,1.64459555,60741.0,60740.0,0.00046482]
[1724382132710,1.56599143,60741.0,60740.0,0.00046482]
[1724382132919,1.31532955,60741.0,60740.0,0.00046482]
[1724382133354,1.31532955,60741.0,60740.0,0.00086075]
[1724382134134,1.23672543,60741.0,60740.0,0.00086075]
[1724382134523,1.07272245,60741.0,60740.0,0.00086075]
[1724382134951,0.74345645,60741.0,60740.0,0.00086075]
[1724382135129,0.41419045,60741.0,60740.0,0.00086075]
[1724382136087,0.41119045,60741.0,60740.0,0.00086075]
[1724382136227,0.30819045,60741.0,60740.0,0.00086075]
[1724382136424,0.31119045,60741.0,60740.0,0.00086075]
[1724382136629,0.30819045,60741.0,60740.0,0.00086075]
[1724382137693,0.38679457,60741.0,60740.0,0.00086075]
[1724382137893,0.38979457,60741.0,60740.0,0.00086075]
[1724382138225,0.38979457,60741.0,60740.0,0.00286075]
[1724382138426,1.20932955,60741.0,60740.0,0.00286075]
[1724382138681,1.30932955,60741.0,60740.0,0.00346482]
[1724382139471,1.63859555,60741.0,60740.0,0.00346482]
[1724382139914,1.63859555,60741.0,60740.0,0.00146482]
[1724382140852,1.63859555,60741.0,60740.0,0.00046482]
[1724382141077,1.64159555,60741.0,60740.0,0.00046482]
[1724382141943,1.64459555,60741.0,60740.0,0.00046482]
[1724382150030,1.24992955,60741.0,60740.0,0.00046482]
[1724382151619,1.31422955,60741.0,60740.0,0.00046482]
[1724382152359,1.31404471,60741.0,60740.0,0.00046482]
[1724382154474,1.23626359,60741.0,60740.0,0.00046482]
[1724382155905,1.09399098,60741.0,60740.0,0.00046482]
[1724382156324,1.09399098,60741.0,60740.0,0.00086075]
[1724382156720,1.09399098,60741.0,60740.0,0.00046482]
[1724382158250,1.09399098,60741.0,60740.0,0.00086075]
[1724382159262,1.09399098,60741.0,60740.0,0.00046482]
[1724382161105,0.271456,60741.0,60740.0,0.00086075]
[1724382161548,0.600722,60741.0,60740.0,0.00086075]
[1724382162171,0.597722,60741.0,60740.0,0.00086075]
[1724382162574,0.597722,60741.0,60740.0,0.00386075]
[1724382162781,0.594722,60741.0,60740.0,0.00086075]
[1724382163118,0.594722,60741.0,60740.0,0.00486075]
[1724382163297,0.596722,60741.0,60740.0,0.00486075]
[1724382163874,0.594722,60741.0,60740.0,0.00486075]
[1724382164079,0.265456,60741.0,60740.0,0.00486075]
[1724382164234,0.000823,60741.0,60740.0,0.31569675]
[1724382164615,0.000823,60741.0,60740.0,0.15106075]
[1724382164801,0.000823,60741.0,60740.0,0.14806075]
[1724382165046,0.000823,60741.0,60740.0,0.14406075]
[1724382165219,0.000823,60741.0,60740.0,0.14706075]
[1724382165421,0.000823,60741.0,60740.0,0.14406075]
[1724382166452,0.000823,60741.0,60740.0,0.14906075]
[1724382166658,0.000823,60741.0,60740.0,0.31369675]
[1724382166790,0.000823,60741.0,60740.0,0.33669675]
[1724382167707,0.000823,60741.0,60740.0,0.34069675]
[1724382168057,0.000823,60741.0,60740.0,0.17106075]
[1724382168266,0.000823,60741.0,60740.0,0.16706075]
[1724382168461,0.001823,60741.0,60740.0,0.17306075]
[1724382169731,0.001823,60741.0,60740.0,0.17806075]
[1724382175638,0.001823,60741.0,60740.0,1.01928184]
[1724382176709,0.001823,60741.0,60740.0,1.01428184]
[1724382176900,0.000823,60741.0,60740.0,1.00828184]
[1724382177107,0.001823,60741.0,60740.0,1.01828184]
[1724382178060,0.001823,60741.0,60740.0,1.02828184]
[1724382179168,0.001823,60741.0,60740.0,1.02828097]
[1724382184183,0.001823,60741.0,60740.0,1.35755297]
[1724382190337,0.001823,60741.0,60740.0,1.35755277]
[1724382193131,0.001823,60741.0,60740.0,1.35755271]
[1724382197257,0.001823,60741.0,60740.0,1.43634482]
[1724382197468,0.001823,60741.0,60740.0,1.43925939]
[1724382197619,0.001823,60741.0,60740.0,1.60326237]
[1724382197898,0.001823,60741.0,60740.0,1.60326207]
[1724382201062,0.001823,60741.0,60740.0,1.60326197]
[1724382201499,0.001823,60741.0,60740.0,1.58522241]
[1724382201713,0.001823,60741.0,60740.0,1.60426197]
[1724382201914,0.001823,60741.0,60740.0,1.60526197]
[1724382202276,0.001823,60741.0,60740.0,1.60426197]
[1724382202696,0.001823,60741.0,60740.0,1.9468983]
[1724382202913,0.000823,60741.0,60740.0,1.9268983]
[1724382203335,0.000823,60741.0,60740.0,1.9548983]
[1724382203537,0.000823,60741.0,60740.0,1.9408983]
[1724382204015,0.000823,60741.0,60740.0,1.9268983]
[1724382204189,0.000823,60741.0,60740.0,1.9408983]
[1724382205102,0.000823,60741.0,60740.0,1.9548983]
[1724382205282,0.000823,60741.0,60740.0,1.9408983]
[1724382205514,0.000823,60741.0,60740.0,1.9268983]
[1724382205687,0.000823,60741.0,60740.0,1.9408983]
[1724382206044,0.000823,60741.0,60740.0,1.9548983]
[1724382206450,0.000823,60741.0,60740.0,1.9408983]
[1724382206674,0.000823,60741.0,60740.0,1.93698373]
[1724382207023,0.000823,60741.0,60740.0,1.95098373]
[1724382208940,0.000823,60741.0,60740.0,1.97674239]
[1724382209185,0.000823,60741.0,60740.0,1.54467828]
[1724382209393,0.000823,60741.0,60740.0,1.62347039]
[1724382209942,0.000823,60741.0,60740.0,1.61110606]
[1724382210144,0.000823,60741.0,60740.0,1.62347034]
[1724382210347,0.000823,60741.0,60740.0,1.64647034]
[1724382210559,0.08224053,60751.0,60750.0,0.00039593]
[1724382210761,0.08224053,60751.0,60750.0,0.01843519]
[1724382211002,0.08224053,60751.0,60750.0,0.00039593]
[1724382211215,0.08224053,60751.0,60750.0,0.18304419]
[1724382211717,0.08224053,60751.0,60750.0,0.20604419]
[1724382211918,0.08224053,60751.0,60750.0,0.21904419]
[1724382212124,0.08224053,60751.0,60750.0,0.23104419]
[1724382214607,0.32807241,60758.0,60750.0,0.23104419]
[1724382214768,0.164594,60756.0,60751.0,0.04103926]
[1724382214969,0.164594,60756.0,60752.0,0.01803926]
[1724382215193,0.164594,60756.0,60755.0,0.00039593]
[1724382215690,0.164589,60758.0,60757.0,0.00039593]
[1724382217622,0.308189,60758.0,60757.0,0.00039593]
[1724382222280,0.1436,60758.0,60757.0,0.00039593]
[1724382222939,0.21372314,60759.0,60758.0,0.00039593]
[1724382222940,0.04913714,60759.0,60758.0,0.00039593]
[1724382223297,0.1424,60761.0,60760.0,0.00039593]
[1724382224161,0.04920031,60762.0,60761.0,0.00039593]
[1724382224487,0.09840063,60763.0,60761.0,0.00039593]
[1724382225093,0.09840063,60763.0,60762.0,0.00039593]
[1724382226927,0.07380456,60763.0,60762.0,0.00039593]
[1724382227958,0.07380295,60763.0,60762.0,0.00039593]
[1724382229988,0.33837395,60764.0,60762.0,0.00039593]
[1724382230190,0.17380295,60764.0,60763.0,0.00039593]
[1724382230839,0.07380295,60764.0,60763.0,0.00039593]
[1724382231263,0.04919222,60764.0,60763.0,0.00039593]
[1724382231596,0.14919222,60765.0,60763.0,0.00039593]
[1724382231799,0.14919222,60765.0,60764.0,0.00039593]
[1724382232593,0.31375847,60765.0,60764.0,0.00039593]
[1724382233021,0.14919047,60765.0,60764.0,0.00039593]
[1724382233681,0.14919047,60765.0,60764.0,0.08179593]
[1724382233682,0.04919047,60765.0,60764.0,0.08179593]
[1724382233882,0.04919047,60766.0,60765.0,0.00039593]
[1724382234164,0.04919047,60766.0,60765.0,0.02339593]
[1724382235325,0.04919047,60767.0,60766.0,0.00039593]
[1724382237098,0.05001347,60767.0,60766.0,0.00039593]
[1724382237319,0.05001226,60767.0,60766.0,0.00039593]
[1724382238391,0.000823,60767.0,60766.0,0.00039593]
[1724382238600,0.05001226,60767.0,60766.0,0.00039593]
[1724382239570,0.21457526,60767.0,60766.0,0.00039593]
[1724382240351,0.308968,60765.0,60764.0,0.00033585]
[1724382240734,0.96724,60765.0,60764.0,0.00033585]
[1724382240937,1.04103974,60765.0,60764.0,0.00033585]
[1724382241331,0.97903974,60765.0,60764.0,0.00033585]
[1724382243433,0.90524,60765.0,60764.0,0.00033585]
[1724382243687,0.82284,60765.0,60764.0,0.00033585]
[1724382243865,0.493704,60765.0,60764.0,0.00033585]
[1724382246395,0.59211936,60765.0,60764.0,0.00033585]
[1724382250002,0.5921385,60765.0,60764.0,0.00033585]
[1724382251071,0.5921385,60765.0,60764.0,0.00124115]
[1724382252025,0.5921385,60765.0,60764.0,0.02424115]
[1724382254797,0.5921385,60765.0,60764.0,0.00124115]
[1724382255029,0.9212745,60765.0,60764.0,0.02424115]
[1724382255356,0.5921385,60765.0,60764.0,0.02424115]
[1724382255787,0.5921385,60765.0,60764.0,0.00124115]
[1724382255949,0.5921385,60765.0,60764.0,0.02424115]
[1724382256149,0.9212745,60765.0,60764.0,0.02424115]
[1724382257782,0.5921385,60765.0,60764.0,0.02424115]
[1724382258005,0.5921385,60765.0,60764.0,0.00124115]
[1724382258460,0.82284,60765.0,60764.0,0.00124115]
[1724382262761,0.94591062,60765.0,60764.0,0.00124115]
[1724382263310,0.94673362,60765.0,60764.0,0.00124115]
[1724382264125,0.9467574,60765.0,60764.0,0.00124115]
[1724382267289,0.823663,60765.0,60764.0,0.00124115]
[1724382268823,0.494527,60765.0,60764.0,0.00124115]
[1724382269049,0.494527,60765.0,60764.0,0.14914115]
[1724382269250,0.494527,60765.0,60764.0,0.17214115]
[1724382269880,0.59306078,60765.0,60764.0,0.17214115]
[1724382270082,0.26392478,60765.0,60764.0,0.17214115]
[1724382271504,0.23929694,60765.0,60764.0,0.17214115]
[1724382272690,0.26392478,60765.0,60764.0,0.17214115]
[1724382273668,0.26393291,60765.0,60764.0,0.17214115]
[1724382277294,0.59306891,60765.0,60764.0,0.17214115]
[1724382282018,0.494527,60765.0,60764.0,0.17214115]
[1724382283074,0.49413085,60765.0,60764.0,0.17214115]
[1724382284319,0.61730823,60765.0,60764.0,0.17214115]
[1724382285676,0.49413085,60765.0,60764.0,0.17214115]
[1724382285797,0.61735333,60765.0,60764.0,0.17214115]
[1724382288053,0.61735382,60765.0,60764.0,0.17214115]
[1724382288251,0.94648982,60765.0,60764.0,0.17214115]
[1724382289875,0.94748982,60765.0,60764.0,0.17214115]
[1724382292627,0.94751187,60765.0,60764.0,0.17214115]
[1724382298963,0.94751187,60765.0,60764.0,0.10724115]
[1724382302188,0.97332071,60765.0,60764.0,0.10724115]
[1724382302860,0.31504871,60765.0,60764.0,0.16874115]
[1724382303342,0.15087686,60765.0,60764.0,0.16874115]
[1724382303558,0.31544486,60765.0,60764.0,0.16874115]
[1724382303720,0.1262894,60765.0,60764.0,0.35134893]
[1724382303880,0.02763184,60765.0,60764.0,0.35134893]
[1724382304161,0.02763184,60765.0,60764.0,1.08842504]
[1724382304366,0.02763184,60765.0,60764.0,1.07038826]
[1724382304625,0.02763184,60765.0,60764.0,1.08842279]
[1724382304925,0.02763184,60765.0,60764.0,1.58156777]
[1724382305065,0.02663184,60765.0,60764.0,1.58156777]
[1724382306025,0.02663184,60765.0,60764.0,1.58356777]
[1724382306854,0.02663184,60765.0,60764.0,1.00963068]
[1724382307580,0.02663184,60765.0,60764.0,0.16977568]
[1724382307757,0.19119984,60765.0,60764.0,0.16977568]
[1724382307958,0.19119984,60765.0,60764.0,0.14574115]
[1724382308196,0.19119984,60765.0,60764.0,0.15174115]
[1724382308397,0.19119984,60765.0,60764.0,0.16074115]
[1724382308747,0.19119984,60765.0,60764.0,0.14574115]
[1724382308949,0.19119984,60765.0,60764.0,0.17474115]
[1724382309276,0.19119984,60765.0,60764.0,0.18174115]
[1724382309487,0.19119984,60765.0,60764.0,0.17474115]
[1724382309899,0.19119984,60765.0,60751.0,0.09115372]
[1724382309900,0.329218,60750.0,60749.0,0.04935651]
[1724382310121,0.329218,60750.0,60740.0,0.00046482]
[1724382310122,0.493899,60741.0,60740.0,0.00046482]
[1724382310258,0.98716798,60741.0,60740.0,0.00046482]
[1724382310499,1.19177862,60741.0,60740.0,0.00046482]
[1724382310961,1.33937862,60741.0,60740.0,0.00046482]
[1724382311502,1.43759275,60741.0,60740.0,0.00046482]
[1724382311740,1.76685875,60741.0,60740.0,0.00146482]
[1724382312424,1.26958651,60741.0,60740.0,0.00146482]
[1724382312627,1.26058651,60741.0,60740.0,0.00046482]
[1724382312844,1.34319248,60741.0,60740.0,0.00146482]
[1724382313276,1.66345848,60741.0,60740.0,0.00046482]
[1724382313476,1.58985251,60741.0,60740.0,0.00046482]
[1724382313678,1.26958651,60741.0,60740.0,0.00146482]
[1724382314067,1.26058651,60741.0,60740.0,0.00046482]
[1724382314434,1.20418651,60741.0,60740.0,0.00146482]
[1724382314634,1.21318651,60741.0,60740.0,0.00246482]
[1724382315091,1.54245251,60741.0,60740.0,0.00246482]
[1724382315476,0.62871753,60741.0,60740.0,0.00180067]
[1724382315675,0.62871753,60741.0,60740.0,0.00146482]
[1724382315876,0.96698353,60741.0,60740.0,0.00246482]
[1724382316080,0.95798353,60741.0,60740.0,0.02446482]
[1724382316987,0.96098353,60741.0,60740.0,0.02546482]
[1724382317754,0.95198353,60741.0,60740.0,0.02446482]
[1724382317960,0.96098353,60741.0,60740.0,0.02546482]
[1724382318568,0.95198353,60741.0,60740.0,0.02446482]
[1724382318741,0.96098353,60741.0,60740.0,0.02546482]
[1724382319151,0.95198353,60741.0,60740.0,0.02446482]
[1724382319356,0.63171753,60741.0,60740.0,0.02546482]
[1724382319582,0.62271753,60741.0,60740.0,0.02446482]
[1724382319785,0.94898353,60741.0,60740.0,0.02346482]
[1724382320254,0.62271753,60741.0,60740.0,0.02480067]
[1724382320403,0.52271753,60741.0,60740.0,0.10260067]
[1724382320597,0.19345153,60741.0,60740.0,0.10260067]
[1724382320853,0.51971753,60741.0,60740.0,0.10160067]
[1724382321202,0.52271753,60741.0,60740.0,0.10260067]
[1724382321601,0.53071753,60741.0,60740.0,0.10360067]
[1724382321832,0.51971753,60741.0,60740.0,0.10160067]
[1724382322208,0.52471753,60741.0,60740.0,0.10160067]
[1724382322590,0.19545153,60741.0,60740.0,0.10160067]
[1724382322787,0.52471753,60741.0,60740.0,0.10160067]
[1724382323029,0.52771753,60741.0,60740.0,0.10160067]
[1724382325879,0.52771753,60741.0,60740.0,0.10126482]
[1724382328439,0.52771753,60741.0,60740.0,0.10160067]
[1724382330646,0.52577484,60741.0,60740.0,0.10160067]
[1724382332686,0.19650884,60741.0,60740.0,0.10160067]
[1724382334254,0.03381853,60741.0,60740.0,0.10160067]
[1724382335393,0.02881853,60741.0,60740.0,0.10160067]
[1724382335573,0.02581853,60741.0,60740.0,0.10160067]
[1724382335825,0.02881853,60741.0,60740.0,0.10160067]
[1724382336011,0.03281853,60741.0,60740.0,0.10160067]
[1724382338344,0.03281853,60741.0,60740.0,0.26623667]
[1724382338544,0.03281853,60741.0,60740.0,0.92478067]
[1724382338749,0.03281853,60741.0,60740.0,0.98818067]
[1724382339656,0.03281853,60741.0,60740.0,0.65890867]
[1724382342714,0.03281853,60741.0,60740.0,0.32963667]
[1724382343132,0.03364153,60741.0,60740.0,0.32963667]
[1724382346892,0.03364153,60741.0,60740.0,0.16500067]
[1724382361670,0.03364153,60741.0,60740.0,0.32963667]
[1724382363916,0.03364153,60741.0,60740.0,0.65890867]
[1724382364118,0.007823,60741.0,60740.0,1.06700641]
[1724382364269,0.007823,60741.0,60740.0,1.39627841]
[1724382364678,0.007823,60741.0,60740.0,1.31745267]
[1724382365084,0.003823,60741.0,60740.0,1.31745267]
[1724382365291,0.000823,60741.0,60740.0,1.31745267]
[1724382365491,0.003823,60741.0,60740.0,1.31745267]
[1724382366028,0.000823,60741.0,60740.0,1.32045267]
[1724382366236,0.000823,60741.0,60740.0,1.31745267]
[1724382366573,0.000823,60741.0,60740.0,1.32345267]
[1724382367338,0.0266375,60741.0,60740.0,1.32345267]
[1724382367852,0.0276375,60741.0,60740.0,1.33045267]
[1724382370810,0.0276375,60741.0,60740.0,1.57328139]
[1724382372675,0.0276375,60741.0,60740.0,1.90746796]
[1724382373682,0.0276375,60741.0,60740.0,1.90355339]
[1724382375625,0.0276375,60741.0,60740.0,1.90550871]
[1724382376024,0.0276375,60741.0,60740.0,1.90746796]
[1724382378536,0.0276375,60741.0,60740.0,1.90355339]
[1724382379295,0.0276375,60741.0,60740.0,1.90550871]
[1724382380753,0.0276375,60741.0,60740.0,1.90746796]
[1724382389684,0.0276375,60741.0,60740.0,1.90355339]
[1724382399162,0.0276375,60741.0,60740.0,1.90550871]
[1724382399404,0.0276375,60741.0,60740.0,1.90746796]
[1724382401525,0.0276375,60741.0,60740.0,1.90550871]
[1724382401746,0.0276375,60741.0,60740.0,1.90746796]
[1724382404450,0.0276375,60741.0,60740.0,2.23673996]
[1724382404652,0.0276375,60741.0,60740.0,2.80042358]
[1724382404856,0.0276375,60741.0,60740.0,2.92808936]
[1724382405436,0.0276375,60741.0,60740.0,2.80484409]
[1724382405612,0.0266375,60741.0,60740.0,2.79784409]
[1724382406024,0.0276375,60741.0,60740.0,2.81184409]
[1724382406562,0.0276375,60741.0,60740.0,2.80584409]
[1724382406702,0.0276375,60741.0,60740.0,2.80581975]
[1724382406902,0.0276375,60741.0,60740.0,2.81781975]
[1724382410026,0.0276375,60741.0,60740.0,2.71480302]
[1724382410027,0.001,60741.0,60740.0,2.71480302]
[1724382410221,0.001,60741.0,60740.0,2.81781824]
[1724382411464,0.001,60741.0,60740.0,2.71480302]
[1724382412843,0.001,60741.0,60740.0,2.81781674]
[1724382412844,0.001823,60741.0,60740.0,2.81781674]
[1724382413232,0.02763197,60741.0,60740.0,2.81781674]
[1724382415807,0.02763197,60741.0,60740.0,2.71480302]
[1724382419983,0.02763197,60741.0,60740.0,2.81781791]
[1724382420662,0.02763197,60741.0,60740.0,2.83585408]
[1724382421038,0.02763197,60741.0,60740.0,2.9838224]
[1724382421616,0.02763197,60741.0,60740.0,2.83585408]
[1724382423043,0.02763197,60741.0,60740.0,2.83585386]
[1724382423441,0.00363197,60741.0,60740.0,2.73283897]
[1724382423582,0.000823,60750.0,60749.0,1.48675342]
[1724382423926,0.000823,60750.0,60749.0,2.04077243]
[1724382424149,0.02663126,60750.0,60749.0,2.04077243]
[1724382424532,0.02663126,60750.0,60749.0,1.99141809]
[1724382424854,0.02663126,60750.0,60749.0,1.99441809]
[1724382425063,0.02663126,60750.0,60749.0,1.99741809]
[1724382425410,0.02663126,60750.0,60749.0,2.02041809]
[1724382426247,0.02663126,60750.0,60749.0,1.85466757]
[1724382426479,0.02663126,60750.0,60749.0,1.87465884]
[1724382426732,0.02623496,60750.0,60749.0,1.87270352]
[1724382427067,0.02623496,60750.0,60749.0,1.87465884]
[1724382427545,0.02623496,60750.0,60749.0,1.87661809]
[1724382428593,0.02623496,60750.0,60749.0,1.87270352]
[1724382428839,0.02623496,60750.0,60749.0,1.87465884]
[1724382429251,0.02623496,60750.0,60749.0,1.87270352]
[1724382430522,0.02623496,60750.0,60749.0,1.88506512]
[1724382431129,0.02623496,60750.0,60749.0,1.88702044]
[1724382431678,0.02623496,60750.0,60749.0,1.88506512]
[1724382433102,0.02623496,60750.0,60749.0,1.88702044]
[1724382433323,0.02623496,60750.0,60749.0,1.9363704]
[1724382433757,0.02623496,60750.0,60749.0,1.93832965]
[1724382434243,0.02623496,60750.0,60749.0,2.01962965]
[1724382434487,0.02623496,60750.0,60749.0,2.40161695]
[1724382434691,0.02623496,60750.0,60749.0,2.52497915]
[1724382435113,0.02623496,60750.0,60749.0,2.52497916]
[1724382435316,0.02623496,60750.0,60749.0,2.49731103]
[1724382435528,0.02623496,60750.0,60749.0,2.49430988]
[1724382435741,0.02623496,60750.0,60749.0,2.46690882]
[1724382435964,0.02623496,60750.0,60749.0,2.497305]
[1724382436400,0.02623496,60750.0,60749.0,2.39861558]
[1724382436615,0.02623496,60750.0,60749.0,2.39665633]
[1724382436817,0.02623496,60750.0,60749.0,2.39965633]
[1724382437024,0.02623496,60750.0,60749.0,2.39665633]
[1724382437484,0.02623496,60750.0,60749.0,2.50934553]
[1724382437889,0.02623496,60750.0,60749.0,2.50634041]
[1724382438234,0.02623496,60750.0,60749.0,2.52034041]
[1724382438683,0.02623496,60750.0,60749.0,2.52229966]
[1724382439181,0.02623496,60750.0,60749.0,1.11639583]
[1724382439354,0.02623496,60750.0,60749.0,1.14645851]
[1724382439559,0.02623496,60750.0,60749.0,1.21325807]
[1724382439907,0.02623496,60750.0,60749.0,1.19522157]
[1724382440041,0.02623496,60750.0,60749.0,1.51044457]
[1724382440266,0.02623496,60750.0,60749.0,1.16722157]
[1724382440471,0.02623496,60750.0,60749.0,1.21222157]
[1724382440784,0.02623496,60750.0,60749.0,1.51944457]
[1724382441185,0.02623496,60750.0,60749.0,1.54244457]
[1724382444004,0.02623496,60750.0,60749.0,1.60838757]
[1724382448758,0.02623496,60750.0,60749.0,1.73495063]
[1724382448919,0.02623496,60750.0,60749.0,1.80005593]
[1724382449339,0.02623496,60750.0,60749.0,1.75069287]
[1724382449538,0.02623496,60750.0,60749.0,1.60929287]
[1724382449890,0.02623496,60750.0,60749.0,1.58629287]
[1724382450466,0.02623496,60750.0,60749.0,1.60029287]
[1724382450771,0.02623496,60750.0,60749.0,1.61129287]
[1724382451164,0.02623496,60750.0,60749.0,1.60029287]
[1724382451513,0.02623496,60750.0,60749.0,1.61329287]
[1724382457899,0.02623496,60750.0,60749.0,1.69159287]
[1724382460033,0.02623496,60750.0,60749.0,2.02081587]
[1724382461494,0.02623496,60750.0,60749.0,2.48465162]
[1724382464450,0.02623496,60750.0,60749.0,2.38586819]
[1724382465659,0.02623496,60750.0,60749.0,2.45016819]
[1724382466276,0.0004267,60750.0,60749.0,2.45016819]
[1724382468560,0.0004267,60750.0,60749.0,2.54894477]
[1724382469495,0.0004267,60750.0,60749.0,2.54894376]
[1724382471381,0.0004267,60750.0,60749.0,2.55089908]
[1724382471578,0.0004267,60750.0,60749.0,2.54894376]
[1724382472389,0.0004267,60750.0,60749.0,2.55089908]
[1724382472625,0.0004267,60750.0,60749.0,2.56130504]
[1724382474093,0.0004267,60750.0,60749.0,2.46252947]
[1724382474474,0.02623516,60750.0,60749.0,2.46252947]
[1724382474667,0.02623516,60750.0,60749.0,2.56129927]
[1724382475273,0.02623516,60750.0,60749.0,2.54893799]
[1724382475475,0.02623516,60750.0,60749.0,2.56129928]
[1724382476032,0.0004267,60750.0,60749.0,2.56129928]
[1724382477005,0.0004267,60750.0,60749.0,2.46252948]
[1724382477415,0.0004267,60750.0,60749.0,2.4644848]
[1724382477663,0.02623506,60750.0,60749.0,2.4644848]
[1724382478066,0.02623506,60750.0,60749.0,2.46644405]
[1724382478314,0.02623506,60750.0,60749.0,2.46643447]
[1724382481410,0.02623506,60750.0,60749.0,2.46641827]
[1724382481591,0.02623506,60750.0,60749.0,2.56550944]
[1724382481796,0.02623506,60750.0,60749.0,2.56746476]
[1724382482428,0.02623506,60750.0,60749.0,2.46641827]
[1724382482638,0.02623506,60750.0,60749.0,2.56942377]
[1724382483186,0.02623506,60750.0,60749.0,2.89864677]
[1724382483910,0.02623506,60750.0,60749.0,2.56942309]
[1724382484124,0.02623506,60750.0,60749.0,2.58178365]
[1724382484575,0.02623506,60750.0,60749.0,2.5941442]
[1724382486343,0.02623506,60750.0,60749.0,2.59414067]
[1724382488361,0.02623506,60750.0,60749.0,2.56941957]
[1724382491101,0.02623506,60750.0,60749.0,2.56941459]
[1724382493144,0.02623506,60750.0,60749.0,2.56941443]
[1724382495746,0.02623506,60750.0,60749.0,2.56941402]
[1724382496946,0.02623506,60750.0,60749.0,2.89863702]
[1724382497145,0.02623506,60750.0,60749.0,3.04680734]
[1724382497716,0.02623506,60750.0,60749.0,2.89863702]
[1724382497928,0.02623506,60750.0,60749.0,2.56941402]
[1724382499774,0.02623506,60750.0,60749.0,2.89863702]
[1724382500203,0.02623506,60750.0,60749.0,2.71754431]
[1724382500502,0.02623506,60750.0,60749.0,2.71752741]
[1724382502052,0.02623506,60750.0,60749.0,3.04675041]
[1724382502792,0.02623506,60750.0,60749.0,2.71752741]
[1724382503345,0.02623506,60750.0,60749.0,3.0343906]
[1724382503552,0.02623506,60750.0,60749.0,3.04675039]
[1724382504330,0.02623506,60750.0,60749.0,2.71752739]
[1724382505267,0.02623506,60750.0,60749.0,2.71750849]
[1724382505763,0.02623506,60750.0,60749.0,3.04673149]
[1724382505968,0.02623506,60750.0,60749.0,2.71750849]
[1724382506544,0.02623506,60750.0,60749.0,2.7051487]
[1724382506706,0.02623506,60750.0,60749.0,2.71750843]
[1724382507046,0.02623506,60750.0,60749.0,2.88461903]
[1724382507403,0.02623506,60750.0,60749.0,2.87161903]
[1724382507819,0.02623506,60750.0,60749.0,2.89861903]
[1724382508223,0.02623506,60750.0,60749.0,2.88561903]
[1724382508636,0.02623506,60750.0,60749.0,2.89961903]
[1724382509019,0.02623506,60750.0,60749.0,2.88561903]
[1724382509480,0.02623506,60750.0,60749.0,2.89961903]
[1724382512422,0.1396,60763.0,60762.0,1.48447917]
[1724382512633,0.000823,60765.0,60764.0,0.49896342]
[1724382512634,0.062923,60765.0,60764.0,0.49896342]
[1724382512841,0.062923,60765.0,60764.0,1.33165088]
[1724382513039,0.062923,60765.0,60764.0,1.65883756]
[1724382513328,0.08872821,60765.0,60764.0,1.70820142]
[1724382513525,0.08872821,60765.0,60764.0,1.65883756]
[1724382514602,0.08872821,60765.0,60764.0,1.68983756]
[1724382514919,0.16612821,60765.0,60764.0,1.69683756]
[1724382522346,0.16612821,60765.0,60764.0,1.69683702]
[1724382522774,0.16612821,60765.0,60764.0,1.68447783]
[1724382523148,0.16612821,60765.0,60764.0,1.69683702]
[1724382523609,0.16612821,60765.0,60764.0,1.36769502]
[1724382523809,0.16612821,60765.0,60764.0,1.43362202]
[1724382524011,0.10402821,60765.0,60764.0,1.43362202]
[1724382524213,0.02662821,60765.0,60764.0,1.43362202]
[1724382526133,0.02662821,60765.0,60764.0,1.48299461]
[1724382526331,0.02662821,60765.0,60764.0,1.43362202]
[1724382526700,0.02662821,60765.0,60764.0,1.4829925]
[1724382526903,0.02662821,60765.0,60764.0,1.43362202]
[1724382527465,0.02662821,60765.0,60764.0,1.48299003]
[1724382528651,0.02662821,60765.0,60764.0,1.48494633]
[1724382528859,0.02662821,60765.0,60764.0,1.43753659]
[1724382529152,0.02662821,60765.0,60764.0,1.76276338]
[1724382530713,0.02662821,60765.0,60764.0,2.20177039]
[1724382532669,0.02662821,60765.0,60764.0,2.20177012]
[1724382533296,0.02662821,60765.0,60764.0,2.26487012]
[1724382533498,0.02662821,60765.0,60764.0,2.29082159]
[1724382534551,0.02662821,60765.0,60764.0,2.29277691]
[1724382534749,0.02662821,60765.0,60764.0,2.29473616]
[1724382535311,0.000823,60765.0,60764.0,2.29473616]
[1724382535863,0.000823,60765.0,60764.0,2.39346754]
[1724382536217,0.000823,60765.0,60764.0,2.39343625]
[1724382537038,0.000823,60765.0,60764.0,2.29473616]
[1724382537352,0.000823,60765.0,60764.0,2.3934311]
[1724382537760,0.000823,60765.0,60764.0,2.46961313]
[1724382538771,0.000823,60765.0,60764.0,2.46961261]
[1724382538971,0.000823,60765.0,60764.0,2.37091766]
[1724382539839,0.000823,60765.0,60764.0,2.70005966]
[1724382540053,0.000823,60765.0,60764.0,2.69305966]
[1724382540248,0.000823,60765.0,60764.0,2.70705966]
[1724382540543,0.000823,60765.0,60764.0,2.69905966]
[1724382540737,0.000823,60765.0,60764.0,2.71305966]
[1724382541102,0.000823,60765.0,60764.0,2.83524782]
[1724382541503,0.000823,60765.0,60764.0,2.6978883]
[1724382541885,0.000823,60765.0,60764.0,2.69788787]
[1724382542090,0.000823,60765.0,60764.0,2.8212386]
[1724382542287,0.000823,60765.0,60764.0,2.8352386]
[1724382542468,0.000823,60765.0,60764.0,2.8072386]
[1724382542669,0.000823,60765.0,60764.0,2.8212386]
[1724382542883,0.000823,60765.0,60764.0,2.8352386]
[1724382543081,0.000823,60765.0,60764.0,2.8212386]
[1724382543281,0.000823,60765.0,60764.0,2.8072386]
[1724382543513,0.0266247,60765.0,60764.0,2.8352386]
[1724382544538,0.0266247,60765.0,60764.0,2.83523864]
[1724382545010,0.0266247,60765.0,60764.0,2.82123864]
[1724382545214,0.0266247,60765.0,60764.0,2.80723864]
[1724382545440,0.0266247,60765.0,60764.0,2.82123864]
[1724382545657,0.0266247,60765.0,60764.0,2.83523864]
[1724382546649,0.0266247,60765.0,60764.0,2.71188791]
[1724382547045,0.0266247,60765.0,60764.0,2.71188763]
[1724382547291,0.0266247,60765.0,60764.0,2.81486315]
[1724382547639,0.0266247,60765.0,60764.0,2.71188763]